fUSD/lending_fUSD_20260513
["ID","MTS","AMOUNT","RATE_DAILY","PERIOD"]
[422138658,1778611857000,-492.49408754,0.00037187,2]
[422138662,1778611857000,-300.0,0.00037187,2]
[422138660,1778611857000,-604.21547136,0.00037187,2]
[422138664,1778611857000,-527.54022817,0.00037187,2]
[422138670,1778611857000,-725.78568352,0.00037187,2]
[422138666,1778611857000,-1066.50381929,0.00037187,2]
[422138678,1778611857000,-853.86030012,0.00037187,2]
[422138674,1778611857000,-300.0,0.00037187,2]
[422138709,1778611857000,-492.49408754,0.00037187,2]
[422138672,1778611857000,-301.67321972,0.00037187,2]
[422138682,1778611857000,-343.84381003,0.00037187,2]
[422138684,1778611857000,-526.68525168,0.00037187,2]
[422138687,1778611857000,-1146.71946024,0.00037187,2]
[422138689,1778611857000,-309.46605895,0.00037187,2]
[422138693,1778611857000,-300.0,0.00037187,2]
[422138691,1778611857000,-864.10865205,0.00037187,2]
[422138695,1778611857000,-310.77293504,0.00037187,2]
[422138697,1778611857000,-463.6616139,0.00037187,2]
[422138701,1778611857000,-451.72868137,0.00037187,2]
[422138705,1778611857000,-485.71822767,0.00037187,2]
[422138699,1778611857000,-576.93890108,0.00037187,2]
[422138703,1778611857000,-300.0,0.00037187,2]
[422138680,1778611857000,-1911.66155628,0.00037187,2]
[422138778,1778611857000,-1066.50381929,0.00037187,2]
[422138668,1778611857000,-893.04482543,0.00037187,2]
[422138770,1778611857000,-527.54022817,0.00037187,2]
[422138840,1778611857000,-1911.66155628,0.00037187,2]
[422138855,1778611857000,-300.0,0.00037187,2]
[422138853,1778611857000,-310.77293504,0.00037187,2]
[422138838,1778611857000,-853.86030012,0.00037187,2]
[422138842,1778611857000,-343.84381003,0.00037187,2]
[422138857,1778611857000,-463.6616139,0.00037187,2]
[422138872,1778611857000,-527.54022817,0.00037187,2]
[422138870,1778611857000,-305.70483757,0.00037187,2]
[422138874,1778611857000,-1066.50381929,0.00037187,2]
[422138866,1778611857000,-493.99241678,0.00037187,2]
[422138876,1778611857000,-893.04482543,0.00037187,2]
[422138878,1778611857000,-725.78568352,0.00037187,2]
[422138836,1778611857000,-300.45062341,0.00037187,2]
[422138859,1778611857000,-576.93890108,0.00037187,2]
[422138868,1778611857000,-606.13415936,0.00037187,2]
[422138880,1778611857000,-301.67321972,0.00037187,2]
[422138864,1778611857000,-305.60277715,0.00037187,2]
[422138882,1778611857000,-300.45062341,0.00037187,2]
[422138887,1778611857000,-1911.66155628,0.00037187,2]
[422138889,1778611857000,-343.84381003,0.00037187,2]
[422138768,1778611857000,-300.0,0.00037187,2]
[422138891,1778611857000,-523.64063614,0.00037187,2]
[422138895,1778611857000,-309.46605895,0.00037187,2]
[422138899,1778611857000,-310.77293504,0.00037187,2]
[422138897,1778611857000,-864.10865205,0.00037187,2]
[422138893,1778611857000,-1146.71946024,0.00037187,2]
[422138861,1778611857000,-451.72868137,0.00037187,2]
[422138850,1778611857000,-864.10865205,0.00037187,2]
[422138885,1778611857000,-853.86030012,0.00037187,2]
[422138844,1778611857000,-526.68525168,0.00037187,2]
[422138848,1778611857000,-309.46605895,0.00037187,2]
[422138784,1778611857000,-301.67321972,0.00037187,2]
[422138786,1778611857000,-300.0,0.00037187,2]
[422138798,1778611857000,-1146.71946024,0.00037187,2]
[422138788,1778611857000,-300.45062341,0.00037187,2]
[422138790,1778611857000,-853.86030012,0.00037187,2]
[422138794,1778611857000,-343.84381003,0.00037187,2]
[422138782,1778611857000,-725.78568352,0.00037187,2]
[422138796,1778611857000,-526.68525168,0.00037187,2]
[422138800,1778611857000,-309.46605895,0.00037187,2]
[422138803,1778611857000,-864.10865205,0.00037187,2]
[422138805,1778611857000,-310.77293504,0.00037187,2]
[422138807,1778611857000,-300.0,0.00037187,2]
[422138792,1778611857000,-1911.66155628,0.00037187,2]
[422138809,1778611857000,-463.6616139,0.00037187,2]
[422138819,1778611857000,-604.21547136,0.00037187,2]
[422138834,1778611857000,-305.77460873,0.00037187,2]
[422138846,1778611857000,-1146.71946024,0.00037187,2]
[422138830,1778611857000,-725.78568352,0.00037187,2]
[422138828,1778611857000,-893.04482543,0.00037187,2]
[422138822,1778611857000,-300.0,0.00037187,2]
[422138832,1778611857000,-301.67321972,0.00037187,2]
[422138815,1778611857000,-300.0,0.00037187,2]
[422138811,1778611857000,-576.93890108,0.00037187,2]
[422138826,1778611857000,-1066.50381929,0.00037187,2]
[422138824,1778611857000,-527.54022817,0.00037187,2]
[422138813,1778611857000,-451.72868137,0.00037187,2]
[422138817,1778611857000,-492.49408754,0.00037187,2]
[422138951,1778611858000,-300.0,0.00037187,2]
[422138959,1778611858000,-300.0,0.00037187,2]
[422138957,1778611858000,-300.0,0.00037187,2]
[422138953,1778611858000,-781.14729838,0.00037187,2]
[422138963,1778611858000,-459.54453659,0.00037187,2]
[422138961,1778611858000,-300.0,0.00037187,2]
[422138965,1778611858000,-471.87260942,0.00037187,2]
[422138967,1778611858000,-330.98402334,0.00037187,2]
[422138978,1778611858000,-1085.5,0.00037219,2]
[422138980,1778611858000,-1085.48,0.00037244,2]
[422138986,1778611858000,-2518.77,0.00037306,7]
[422138984,1778611858000,-500.0,0.00037288,2]
[422138976,1778611858000,-202.8,0.00037205,7]
[422138974,1778611858000,-176.55287462,0.000372,120]
[422138982,1778611858000,-2509.82,0.00037281,7]
[422138969,1778611858000,-300.0,0.00037187,2]
[422138991,1778611858000,-553.28,0.00037311,2]
[422139003,1778611858000,-202.8,0.0003734,30]
[422138995,1778611858000,-178.09016603,0.00037312,60]
[422138955,1778611858000,-1395.51731803,0.00037187,2]
[422138972,1778611858000,-176.55287462,0.000372,120]
[422138949,1778611858000,-311.77485078,0.00037187,2]
[422138928,1778611858000,-1149.80522734,0.00037187,2]
[422138944,1778611858000,-853.86030012,0.00037187,2]
[422138901,1778611858000,-300.0,0.00037187,2]
[422138903,1778611858000,-465.40703444,0.00037187,2]
[422138905,1778611858000,-576.93890108,0.00037187,2]
[422138907,1778611858000,-453.16788223,0.00037187,2]
[422138909,1778611858000,-300.0,0.00037187,2]
[422138922,1778611858000,-853.86030012,0.00037187,2]
[422138924,1778611858000,-1911.66155628,0.00037187,2]
[422138911,1778611858000,-528.9354819,0.00037187,2]
[422138926,1778611858000,-337.58830881,0.00037187,2]
[422138947,1778611858000,-1911.66155628,0.00037187,2]
[422138913,1778611858000,-895.44663582,0.00037187,2]
[422138915,1778611858000,-1066.50381929,0.00037187,2]
[422138919,1778611858000,-401.46049851,0.00037187,2]
[422138917,1778611858000,-302.55004559,0.00037187,2]
[422138932,1778611858000,-694.90490298,0.00037187,2]
[422138934,1778611858000,-310.77293504,0.00037187,2]
[422138936,1778611858000,-300.0,0.00037187,2]
[422138938,1778611858000,-578.81829248,0.00037187,2]
[422138940,1778611858000,-300.0,0.00037187,2]
[422138942,1778611858000,-1068.55988137,0.00037187,2]
[422138930,1778611858000,-310.34504317,0.00037187,2]
[422139000,1778611858000,-552.83,0.00037336,2]
[422139006,1778611858000,-202.8,0.00037364,30]
[422139020,1778611858000,-2200.4956,0.00037414,2]
[422139075,1778611858000,-552.83,0.00037678,30]
[422139082,1778611858000,-157.71229644,0.00037697,2]
[422139071,1778611858000,-202.8,0.00037661,7]
[422139088,1778611858000,-2129.9813,0.00037768,2]
[422139091,1778611858000,-1085.48,0.00037774,2]
[422139107,1778611858000,-552.83,0.00037849,2]
[422139105,1778611858000,-202.8,0.00037842,30]
[422139099,1778611858000,-221.44,0.00037836,120]
[422139109,1778611858000,-2518.77,0.00037859,7]
[422139111,1778611858000,-185.06,0.00037869,100]
[422139113,1778611858000,-205.5872318,0.0003788,2]
[422139096,1778611858000,-553.28,0.00037829,2]
[422139101,1778611858000,-185.06,0.00037839,80]
[422139094,1778611858000,-185.06,0.00037808,60]
[422139103,1778611858000,-2509.82,0.00037839,7]
[422139115,1778611858000,-5026.19770332,0.00037887,2]
[422139118,1778611858000,-5000.0,0.00037887,2]
[422139120,1778611858000,-5000.0,0.00037887,2]
[422139123,1778611858000,-5000.0,0.00037887,2]
[422139125,1778611858000,-5000.0,0.00037887,2]
[422139017,1778611858000,-214.34,0.000374,30]
[422139080,1778611858000,-202.8,0.00037683,7]
[422139084,1778611858000,-1444.0,0.00037753,120]
[422139095,1778611858000,-202.8,0.00037822,30]
[422139077,1778611858000,-2200.4956,0.00037679,2]
[422139024,1778611858000,-1085.48,0.00037421,7]
[422139010,1778611858000,-1702.0,0.0003739,120]
[422139014,1778611858000,-1085.5,0.00037397,7]
[422139086,1778611858000,-1085.5,0.00037754,2]
[422139032,1778611858000,-573.66,0.00037437,30]
[422139036,1778611858000,-160.0,0.00037463,30]
[422139043,1778611858000,-553.28,0.00037484,7]
[422139040,1778611858000,-2509.82,0.00037467,30]
[422139058,1778611858000,-376.35069746,0.00037589,120]
[422139056,1778611858000,-1085.5,0.00037575,30]
[422139048,1778611858000,-202.8,0.00037501,2]
[422139028,1778611858000,-157.71229644,0.00037423,2]
[422139045,1778611858000,-2518.77,0.00037491,30]
[422139050,1778611858000,-552.83,0.00037507,7]
[422139067,1778611858000,-2509.82,0.00037653,2]
[422139054,1778611858000,-202.08,0.00037538,5]
[422139060,1778611858000,-1085.48,0.00037597,30]
[422139069,1778611858000,-553.28,0.00037656,30]
[422139052,1778611858000,-202.8,0.00037523,2]
[422139065,1778611858000,-1000.0,0.00037615,2]
[422139063,1778611858000,-1000.0,0.00037615,2]
[422139073,1778611858000,-2518.77,0.00037675,2]
[422139144,1778611859000,-202.8,0.00037983,2]
[422139160,1778611859000,-674.84530056,0.00014225,2]
[422139140,1778611859000,-1085.48,0.00037951,7]
[422139148,1778611859000,-130541.93349343,0.00038,2]
[422139146,1778611859000,-471.48952384,0.00038,2]
[422139154,1778611859000,-152.0,0.00010138,2]
[422139156,1778611859000,-177.2416033,0.00014225,2]
[422139133,1778611859000,-330.0,0.00037911,47]
[422139138,1778611859000,-2200.4956,0.00037945,2]
[422139135,1778611859000,-1085.5,0.00037932,7]
[422139131,1778611859000,-12000.0,0.000379,30]
[422139129,1778611859000,-185.06,0.000379,120]
[422139127,1778611859000,-150.63637423,0.00037889,7]
[422139171,1778611859000,-250.0,0.00014,2]
[422139142,1778611859000,-157.71229644,0.00037971,2]
[422139173,1778611859000,-77.91309614,0.00014225,2]
[422139197,1778611859000,-2874.07091588,0.00038,2]
[422139175,1778611859000,-930.0,0.00017225,2]
[422139212,1778611859000,-4104.05474659,0.00038,2]
[422139209,1778611859000,-382.24859,0.00038,2]
[422139205,1778611859000,-1146.00004409,0.00027397,2]
[422139202,1778611859000,-19750.2718755,0.00038,2]
[422139199,1778611859000,-56439.11395084,0.00038,2]
[422139182,1778611859000,-102.07355351,0.00020225,2]
[422139207,1778611859000,-625.79183971,0.00038,2]
[422139194,1778611859000,-4374.04848253,0.00038,2]
[422139184,1778611859000,-930.0,0.00023225,2]
[422139186,1778611859000,-930.0,0.00026225,2]
[422139188,1778611859000,-33.45849165,0.00029225,2]
[422139192,1778611859000,-7077.8591388,0.00038,2]
[422139190,1778611859000,-896.54150835,0.00029225,2]
[422139179,1778611859000,-580.32088263,0.00020225,2]
[422139177,1778611859000,-247.60556386,0.00020225,2]
[422139243,1778611924000,151.0,0.00041332,120]
[422139246,1778612089000,500.0,0.00041332,120]
[422139247,1778612402000,1578.96,0.0001,2]
[422139248,1778612477000,500.0,0.00041276,120]
[422139250,1778612734000,191.22659181,0.00041278,120]
[422139252,1778612803000,-152.0,0.0001014,2]
[422139253,1778612803000,-33.02492973,0.00010599,2]
[422139254,1778612836000,178.21,6.663e-05,2]
[422139255,1778612861000,500.0,0.00041281,120]
[422139281,1778613032000,-500.0,0.00010699,2]
[422139280,1778613032000,-275.1905511,0.00010699,2]
[422139279,1778613032000,-500.0,0.00010699,2]
[422139278,1778613032000,-319.76293902,0.00010699,2]
[422139276,1778613032000,-630.84760294,0.00010699,2]
[422139275,1778613032000,-500.0,0.00010699,2]
[422139272,1778613032000,-500.0,0.00010699,2]
[422139274,1778613032000,-500.0,0.00010699,2]
[422139273,1778613032000,-500.0,0.00010699,2]
[422139271,1778613032000,-500.0,0.00010699,2]
[422139269,1778613032000,-1849.66319346,0.000106,2]
[422139267,1778613032000,-606.0,0.000106,2]
[422139268,1778613032000,-1313.47830498,0.000106,2]
[422139266,1778613032000,-49.72035253,0.000106,2]
[422139264,1778613032000,-851.87387984,0.00010599,2]
[422139265,1778613032000,-348.12612016,0.00010599,2]
[422139263,1778613032000,-150.0,0.00010599,2]
[422139262,1778613032000,-159.0,0.00010599,2]
[422139270,1778613032000,-49923.48560619,0.000106,2]
[422139277,1778613032000,-500.0,0.00010699,2]
[422139287,1778613032000,-500.0,0.00010699,2]
[422139282,1778613032000,-500.0,0.00010699,2]
[422139310,1778613032000,-165.07669279,0.00010699,2]
[422139315,1778613032000,-12986.14234464,0.000107,2]
[422139308,1778613032000,-500.0,0.00010699,2]
[422139306,1778613032000,-520.07800866,0.00010699,2]
[422139304,1778613032000,-500.0,0.00010699,2]
[422139302,1778613032000,-500.0,0.00010699,2]
[422139301,1778613032000,-500.0,0.00010699,2]
[422139299,1778613032000,-500.0,0.00010699,2]
[422139293,1778613032000,-500.0,0.00010699,2]
[422139283,1778613032000,-500.0,0.00010699,2]
[422139312,1778613032000,-376368.3050736,0.000107,2]
[422139288,1778613032000,-500.0,0.00010699,2]
[422139297,1778613032000,-500.0,0.00010699,2]
[422139295,1778613032000,-374.80778487,0.00010699,2]
[422139290,1778613032000,-500.0,0.00010699,2]
[422139285,1778613032000,-500.0,0.00010699,2]
[422139289,1778613032000,-500.0,0.00010699,2]
[422139286,1778613032000,-500.0,0.00010699,2]
[422139291,1778613032000,-496.96141386,0.00010699,2]
[422139284,1778613032000,-465.90931714,0.00010699,2]
[422139403,1778613038000,-748.26893567,0.000107,2]
[422139396,1778613038000,-708.38683977,0.000107,2]
[422139397,1778613038000,-1089.19505249,0.000107,2]
[422139399,1778613038000,-847.28606265,0.000107,2]
[422139400,1778613038000,-2868.75866829,0.000107,2]
[422139398,1778613038000,-2992.09560657,0.000107,2]
[422139401,1778613038000,-27055.09977875,0.000107,2]
[422139402,1778613038000,-3494.11304809,0.000107,2]
[422139404,1778613038000,-730.00216259,0.000107,2]
[422139406,1778613038000,-744.3463817,0.000107,2]
[422139408,1778613038000,-796.01445531,0.000107,2]
[422139410,1778613038000,-2484.84122466,0.000107,2]
[422139405,1778613038000,-691.58645727,0.000107,2]
[422139407,1778613038000,-315.0,0.000107,2]
[422139409,1778613038000,-86635.9199613,0.000107,2]
[422139411,1778613038000,-874.22355268,0.000107,2]
[422139412,1778613038000,-4564.38736795,0.000107,2]
[422139506,1778613040000,-8374.93788229,0.00011,2]
[422139505,1778613040000,-9106.77822256,0.000109,2]
[422139507,1778613040000,-219.47978096,0.00011067,2]
[422139501,1778613040000,-7140.9334672,0.000107,2]
[422139504,1778613040000,-168.84673618,0.000107,2]
[422139502,1778613040000,-2739.0,0.000107,2]
[422139508,1778613040000,-1884.83859496,0.00011099,2]
[422139503,1778613040000,-982529.85503024,0.000107,2]
[422139510,1778613040000,-10136.25689878,0.00011099,2]
[422139509,1778613040000,-10136.25689887,0.00011099,2]
[422139514,1778613040000,-1884.83859494,0.00011633,2]
[422139511,1778613040000,-1884.83859494,0.00011167,2]
[422139513,1778613040000,-255.0,0.00011627,2]
[422139517,1778613040000,-89198.14919218,0.000119,2]
[422139518,1778613040000,-163.92,0.00011905,2]
[422139516,1778613040000,-1680.0,0.00011659,2]
[422139515,1778613040000,-250.0,0.00011659,2]
[422139520,1778613040000,-1884.83859494,0.000121,2]
[422139521,1778613040000,-9231.24,0.0001246,2]
[422139512,1778613040000,-10136.25689878,0.00011556,2]
[422139519,1778613040000,-10136.25689878,0.00012033,2]
[422139548,1778613041000,-500.0,0.00013698,2]
[422139565,1778613041000,-160.0,0.00013905,2]
[422139563,1778613041000,-1295.24,0.00013832,2]
[422139560,1778613041000,-500.0,0.00013698,2]
[422139558,1778613041000,-500.0,0.00013698,2]
[422139549,1778613041000,-500.0,0.00013698,2]
[422139568,1778613041000,-736.0,0.00013991,2]
[422139570,1778613041000,-10136.25689878,0.00014422,2]
[422139557,1778613041000,-500.0,0.00013698,2]
[422139567,1778613041000,-1884.83859494,0.00013967,2]
[422139551,1778613041000,-500.0,0.00013698,2]
[422139569,1778613041000,-3292.0,0.00014107,2]
[422139564,1778613041000,-214.86625456,0.00013905,2]
[422139572,1778613041000,-200.0,0.00014827,2]
[422139559,1778613041000,-500.0,0.00013698,2]
[422139562,1778613041000,-500.0,0.00013698,2]
[422139566,1778613041000,-10136.25689878,0.00013944,2]
[422139571,1778613041000,-1884.83859494,0.00014433,2]
[422139573,1778613041000,-325.0,0.00014851,2]
[422139575,1778613041000,-5000.0,0.000149,2]
[422139581,1778613041000,-195.96,0.00014985,2]
[422139574,1778613041000,-244.29598541,0.000149,2]
[422139582,1778613041000,-187.66395169,0.00014999,2]
[422139576,1778613041000,-1884.83859494,0.000149,2]
[422139578,1778613041000,-14399.04161288,0.000149,2]
[422139577,1778613041000,-239.59241402,0.000149,2]
[422139561,1778613041000,-500.0,0.00013698,2]
[422139550,1778613041000,-500.0,0.00013698,2]
[422139527,1778613041000,-2351.0,0.00012825,2]
[422139547,1778613041000,-500.0,0.00013698,2]
[422139580,1778613041000,-219.47978096,0.000149,2]
[422139522,1778613041000,-10136.25689878,0.00012511,2]
[422139523,1778613041000,-1884.83859494,0.00012567,2]
[422139524,1778613041000,-9106.77822254,0.00012594,2]
[422139525,1778613041000,-433.0,0.00012751,2]
[422139526,1778613041000,-1630.09,0.00012781,2]
[422139529,1778613041000,-219.47978096,0.00012984,2]
[422139528,1778613041000,-160.61,0.00012878,2]
[422139530,1778613041000,-10136.25689878,0.00012989,2]
[422139531,1778613041000,-1884.83859494,0.00013033,2]
[422139532,1778613041000,-15594.44818371,0.0001327,2]
[422139534,1778613041000,-150.20530018,0.00013488,2]
[422139542,1778613041000,-150.0,0.00013488,2]
[422139533,1778613041000,-10136.25689878,0.00013467,2]
[422139535,1778613041000,-150.0,0.00013488,2]
[422139544,1778613041000,-398.1854,0.00013597,2]
[422139543,1778613041000,-1884.83859494,0.000135,2]
[422139539,1778613041000,-150.0,0.00013488,2]
[422139538,1778613041000,-150.00000001,0.00013488,2]
[422139536,1778613041000,-150.0,0.00013488,2]
[422139541,1778613041000,-150.0,0.00013488,2]
[422139545,1778613041000,-500.0,0.00013698,2]
[422139546,1778613041000,-500.0,0.00013698,2]
[422139555,1778613041000,-500.0,0.00013698,2]
[422139553,1778613041000,-500.0,0.00013698,2]
[422139554,1778613041000,-500.0,0.00013698,2]
[422139556,1778613041000,-500.0,0.00013698,2]
[422139552,1778613041000,-403.64113916,0.00013698,2]
[422139579,1778613041000,-10136.25689878,0.000149,2]
[422139604,1778613041000,-572.51131559,0.00014999,2]
[422139585,1778613041000,-572.51131559,0.00014999,2]
[422139610,1778613041000,-572.51131559,0.00014999,2]
[422139611,1778613041000,-572.51131559,0.00014999,2]
[422139618,1778613041000,-572.51131559,0.00014999,2]
[422139619,1778613041000,-572.51131559,0.00014999,2]
[422139583,1778613041000,-308.26684122,0.00014999,2]
[422139626,1778613041000,-572.51131559,0.00014999,2]
[422139627,1778613041000,-572.51131559,0.00014999,2]
[422139621,1778613041000,-572.51131559,0.00014999,2]
[422139620,1778613041000,-572.51131559,0.00014999,2]
[422139623,1778613041000,-572.51131559,0.00014999,2]
[422139622,1778613041000,-572.51131559,0.00014999,2]
[422139624,1778613041000,-572.51131559,0.00014999,2]
[422139630,1778613041000,-572.51131559,0.00014999,2]
[422139628,1778613041000,-572.51131559,0.00014999,2]
[422139634,1778613041000,-1054.47657137,0.00014999,2]
[422139633,1778613041000,-572.51131559,0.00014999,2]
[422139640,1778613041000,-1054.47657137,0.00014999,2]
[422139639,1778613041000,-1054.47657137,0.00014999,2]
[422139629,1778613041000,-572.51131559,0.00014999,2]
[422139636,1778613041000,-1054.47657137,0.00014999,2]
[422139637,1778613041000,-1054.47657137,0.00014999,2]
[422139632,1778613041000,-572.51131559,0.00014999,2]
[422139631,1778613041000,-572.51131559,0.00014999,2]
[422139635,1778613041000,-1054.47657137,0.00014999,2]
[422139638,1778613041000,-1054.47657137,0.00014999,2]
[422139641,1778613041000,-1054.47657137,0.00014999,2]
[422139642,1778613041000,-1054.47657137,0.00014999,2]
[422139609,1778613041000,-572.51131559,0.00014999,2]
[422139608,1778613041000,-572.51131559,0.00014999,2]
[422139625,1778613041000,-572.51131559,0.00014999,2]
[422139617,1778613041000,-572.51131559,0.00014999,2]
[422139586,1778613041000,-572.51131559,0.00014999,2]
[422139587,1778613041000,-572.51131559,0.00014999,2]
[422139590,1778613041000,-572.51131559,0.00014999,2]
[422139588,1778613041000,-572.51131559,0.00014999,2]
[422139594,1778613041000,-572.51131559,0.00014999,2]
[422139584,1778613041000,-572.51131559,0.00014999,2]
[422139613,1778613041000,-572.51131559,0.00014999,2]
[422139591,1778613041000,-572.51131559,0.00014999,2]
[422139592,1778613041000,-572.51131559,0.00014999,2]
[422139593,1778613041000,-572.51131559,0.00014999,2]
[422139589,1778613041000,-572.51131559,0.00014999,2]
[422139596,1778613041000,-572.51131559,0.00014999,2]
[422139598,1778613041000,-572.51131559,0.00014999,2]
[422139595,1778613041000,-572.51131559,0.00014999,2]
[422139599,1778613041000,-572.51131559,0.00014999,2]
[422139597,1778613041000,-572.51131559,0.00014999,2]
[422139614,1778613041000,-572.51131559,0.00014999,2]
[422139615,1778613041000,-572.51131559,0.00014999,2]
[422139616,1778613041000,-572.51131559,0.00014999,2]
[422139602,1778613041000,-572.51131559,0.00014999,2]
[422139605,1778613041000,-572.51131559,0.00014999,2]
[422139612,1778613041000,-572.51131559,0.00014999,2]
[422139606,1778613041000,-572.51131559,0.00014999,2]
[422139601,1778613041000,-572.51131559,0.00014999,2]
[422139600,1778613041000,-572.51131559,0.00014999,2]
[422139603,1778613041000,-572.51131559,0.00014999,2]
[422139607,1778613041000,-572.51131559,0.00014999,2]
[422139655,1778613042000,-1054.47657137,0.00014999,2]
[422139649,1778613042000,-1054.47657137,0.00014999,2]
[422139654,1778613042000,-1054.47657137,0.00014999,2]
[422139653,1778613042000,-1054.47657137,0.00014999,2]
[422139648,1778613042000,-1054.47657137,0.00014999,2]
[422139651,1778613042000,-1054.47657137,0.00014999,2]
[422139652,1778613042000,-1054.47657137,0.00014999,2]
[422139650,1778613042000,-1054.47657137,0.00014999,2]
[422139644,1778613042000,-1054.47657137,0.00014999,2]
[422139646,1778613042000,-1054.47657137,0.00014999,2]
[422139647,1778613042000,-1054.47657137,0.00014999,2]
[422139643,1778613042000,-1054.47657137,0.00014999,2]
[422139657,1778613042000,-1054.47657137,0.00014999,2]
[422139645,1778613042000,-1054.47657137,0.00014999,2]
[422139660,1778613042000,-1155.6931761,0.00014999,2]
[422139668,1778613042000,-1155.6931761,0.00014999,2]
[422139659,1778613042000,-1155.6931761,0.00014999,2]
[422139671,1778613042000,-1155.6931761,0.00014999,2]
[422139673,1778613042000,-150.0,0.00014999,2]
[422139672,1778613042000,-1155.6931761,0.00014999,2]
[422139670,1778613042000,-1155.6931761,0.00014999,2]
[422139669,1778613042000,-1155.6931761,0.00014999,2]
[422139664,1778613042000,-1155.6931761,0.00014999,2]
[422139666,1778613042000,-1155.6931761,0.00014999,2]
[422139656,1778613042000,-1054.47657137,0.00014999,2]
[422139667,1778613042000,-1155.6931761,0.00014999,2]
[422139674,1778613042000,-1798811.38312306,0.00015,2]
[422139663,1778613042000,-1155.6931761,0.00014999,2]
[422139662,1778613042000,-1155.6931761,0.00014999,2]
[422139661,1778613042000,-1155.6931761,0.00014999,2]
[422139658,1778613042000,-1054.47657137,0.00014999,2]
[422139665,1778613042000,-1155.6931761,0.00014999,2]
[422139699,1778613043000,-585.43671901,0.00015,2]
[422139717,1778613046000,-285.81435224,0.00014588,2]
[422139718,1778613250000,500.0,0.00041285,120]
[422139722,1778613622000,155.55,9.574e-05,2]
[422139721,1778613622000,155.55,8.729e-05,2]
[422139720,1778613622000,155.55,7.883e-05,2]
[422139719,1778613622000,155.55,7.038e-05,2]
[422139723,1778613629000,500.0,0.0004128,120]
[422139724,1778613779000,172.58854042,0.00041296,120]
[422139728,1778613990000,-85.79080336,0.00011264,2]
[422139727,1778613990000,-155.55,0.00010419,2]
[422139729,1778613996000,500.0,0.00041296,120]
[422139751,1778614232000,-150.0,0.00013698,2]
[422139752,1778614232000,-150.99,0.00013699,2]
[422139753,1778614232000,-6056.41,0.00013699,2]
[422139755,1778614232000,-9999.99,0.00013699,2]
[422139754,1778614232000,-9999.99,0.00013699,2]
[422139745,1778614232000,-1200.0,0.00013523,2]
[422139748,1778614232000,-300.0,0.00013634,2]
[422139750,1778614232000,-3678.22055067,0.00013698,2]
[422139756,1778614232000,-1195.28,0.00013699,2]
[422139747,1778614232000,-300.0,0.00013634,2]
[422139749,1778614232000,-252.0,0.00013634,2]
[422139746,1778614232000,-2842.35,0.00013524,2]
[422139744,1778614232000,-200.0,0.00013475,2]
[422139734,1778614232000,-155.55,0.0001211,2]
[422139741,1778614232000,-2842.35,0.00013194,2]
[422139742,1778614232000,-182.27,0.00013407,2]
[422139739,1778614232000,-500.0,0.00012993,2]
[422139738,1778614232000,-150.0,0.00012982,2]
[422139740,1778614232000,-1852.42,0.00013058,2]
[422139743,1778614232000,-183.99,0.00013449,2]
[422139736,1778614232000,-150.0,0.00012867,2]
[422139735,1778614232000,-6177.65183422,0.000128,2]
[422139731,1778614232000,-69.75919664,0.00011264,2]
[422139733,1778614232000,-214.86625456,0.00012016,2]
[422139732,1778614232000,-160.0,0.00012001,2]
[422139757,1778614232000,-9999.99,0.00013699,2]
[422139737,1778614232000,-155.55,0.00012955,2]
[422139761,1778614232000,-12154.2,0.00013699,2]
[422139762,1778614232000,-61414.44,0.00013699,2]
[422139758,1778614232000,-1215.06,0.00013699,2]
[422139786,1778614232000,-5722.88516066,0.00014404,2]
[422139782,1778614232000,-4286.193,0.00014404,2]
[422139784,1778614232000,-7812.97710973,0.00014404,2]
[422139787,1778614232000,-370.50525017,0.00014404,2]
[422139759,1778614232000,-4999.99,0.00013699,2]
[422139783,1778614232000,-68581.11860919,0.00014404,2]